bitfinex/quotes_SOLUSD_20241113
["timestamp","ask_amount","ask_price","bid_price","bid_amount"]
[1731506055355,18.703821,213.92,213.64,0.12549]
[1731506055552,37.35083838,213.94,213.64,0.12549]
[1731506055757,18.703025,213.93,213.64,0.12549]
[1731506056981,42.57143467,213.94,213.68,20.12549]
[1731506056982,37.35083838,213.94,213.68,20.12549]
[1731506057167,56.05269938,213.94,213.72,20.12549]
[1731506057374,37.35083838,213.92,213.72,20.0]
[1731506057674,37.35083838,213.92,213.71,23.776884]
[1731506057856,37.35083838,213.92,213.68,20.0]
[1731506058056,37.35083838,213.92,213.71,23.776884]
[1731506058261,37.35083838,213.88,213.67,30.1585]
[1731506058465,37.35083838,213.86,213.67,30.1585]
[1731506058760,23.776884,213.87,213.67,30.1585]
[1731506058959,185.176884,213.87,213.67,30.1585]
[1731506059167,37.35083838,213.86,213.67,30.1585]
[1731506060261,37.35083838,213.84,213.67,30.1585]
[1731506060573,23.776884,213.81,213.67,30.1585]
[1731506060767,37.35083838,213.82,213.67,30.1585]
[1731506061453,37.35083838,213.8,213.67,30.1585]
[1731506061658,37.35083838,213.84,213.67,30.1585]
[1731506061858,37.35083838,213.88,213.67,30.1585]
[1731506062072,37.35083838,213.9,213.68,0.12549]
[1731506062254,37.35083838,213.9,213.68,20.12549]
[1731506062679,37.35083838,213.9,213.67,30.1585]
[1731506062680,37.35083838,213.86,213.67,30.1585]
[1731506062876,0.12549,213.91,213.67,30.1585]
[1731506062877,5.22059629,213.89,213.67,30.1585]
[1731506063173,18.701861,213.94,213.72,0.12549]
[1731506063373,37.35083838,213.95,213.72,0.12549]
[1731506063577,18.700716,213.95,213.72,20.12549]
[1731506063879,161.4,213.98,213.76,0.12549]
[1731506064101,18.69823,213.98,213.76,0.12549]
[1731506064579,42.57143467,213.99,213.74,13.0026]
[1731506064580,5.22059629,213.99,213.78,20.12549]
[1731506064875,37.35083838,213.99,213.77,30.6022]
[1731506065079,37.35083838,213.99,213.78,20.0]
[1731506065280,56.04613438,214.01,213.79,0.12549]
[1731506065780,37.35083838,214.03,213.81,0.12549]
[1731506066285,37.35083838,214.01,213.78,20.0]
[1731506066481,42.57143467,214.01,213.79,0.12549]
[1731506066884,5.22059629,214.01,213.81,0.12549]
[1731506067078,56.04551838,214.03,213.81,0.12549]
[1731506067472,60.71791838,214.03,213.77,30.6022]
[1731506067669,56.04551838,214.03,213.78,20.12549]
[1731506067879,18.69468,214.03,213.78,20.12549]
[1731506068075,166.62059629,214.07,213.8,20.12549]
[1731506068392,161.4,214.14,213.82,0.12549]
[1731506068581,0.1,214.15,213.88,0.12549]
[1731506068582,43.07381617,214.15,213.88,0.12549]
[1731506068894,56.03516438,214.15,213.9,20.12549]
[1731506069474,18.684326,214.15,213.93,12.3758]
[1731506069774,37.35083838,214.19,213.94,20.12549]
[1731506069977,37.35083838,214.17,213.94,20.12549]
[1731506070492,37.35083838,214.15,213.94,20.12549]
[1731506070990,37.35083838,214.11,213.93,12.3758]
[1731506071570,4.6703,214.12,213.93,12.3758]
[1731506071771,23.776884,214.12,213.93,12.3758]
[1731506072381,23.776884,214.13,213.94,0.12549]
[1731506073096,23.776884,214.14,213.93,12.3758]
[1731506073280,23.776884,214.1,213.93,12.3758]
[1731506074077,23.776884,214.12,213.93,12.3758]
[1731506075173,37.35083838,214.11,213.93,12.3758]
[1731506075495,23.776884,214.06,213.93,12.3758]
[1731506075993,37.35083838,214.09,213.93,12.3758]
[1731506075994,37.35083838,214.05,213.93,12.3758]
[1731506076197,23.776884,214.04,213.93,12.3758]
[1731506076394,28.69924634,214.04,213.93,12.3758]
[1731506077094,37.35083838,213.96,213.93,12.3758]
[1731506077293,61.12772238,213.94,213.93,12.3758]
[1731506077498,23.776884,213.93,213.84,12.4074]
[1731506077681,37.35083838,213.9,213.84,12.4074]
[1731506077998,37.35083838,213.88,213.84,12.4074]
[1731506078190,23.776884,213.87,213.84,12.4074]
[1731506078898,185.176884,213.89,213.8,32.2317]
[1731506079081,37.35083838,213.88,213.8,32.2317]
[1731506079397,189.852184,213.89,213.8,32.2317]
[1731506079599,185.176884,213.89,213.8,32.2317]
[1731506079775,37.35083838,213.88,213.8,32.2317]
[1731506079982,23.776884,213.87,213.8,32.2317]
[1731506080700,23.776884,213.88,213.8,32.2317]
[1731506080900,37.35083838,213.87,213.8,32.2317]
[1731506081085,23.776884,213.86,213.8,32.2317]
[1731506081401,23.776884,213.88,213.8,32.2317]
[1731506082301,44.86271831,213.95,213.8,32.2317]
[1731506082496,47.56176801,213.95,213.8,32.2317]
[1731506082685,37.35083838,213.93,213.8,32.2317]
[1731506082891,37.35083838,213.87,213.8,32.2317]
[1731506083598,23.776884,213.86,213.8,32.2317]
[1731506084389,37.47632838,213.83,213.76,0.19828]
[1731506084590,23.776884,213.82,213.76,0.19828]
[1731506084801,23.776884,213.8,213.76,0.19828]
[1731506084993,23.776884,213.78,213.76,0.19828]
[1731506085188,29.34323838,213.79,213.76,0.19828]
[1731506085389,37.35083838,213.81,213.76,0.19828]
[1731506085884,37.35083838,213.79,213.76,0.19828]
[1731506086205,37.35083838,213.81,213.76,0.19828]
[1731506086389,4.6768,213.82,213.76,0.19828]
[1731506086590,4.92236234,213.82,213.76,0.19828]
[1731506086786,37.35083838,213.83,213.76,0.19828]
[1731506086992,0.12549,213.82,213.76,0.19828]
[1731506088005,18.709148,213.83,213.76,0.19828]
[1731506089301,204.28776801,213.89,213.76,0.19828]
[1731506089302,166.93692963,213.89,213.76,0.19828]
[1731506089486,18.705933,213.87,213.76,0.19828]
[1731506089691,5.53692963,213.93,213.76,0.19828]
[1731506090207,18.703636,213.92,213.76,0.19828]
[1731506090391,37.35083838,213.97,213.76,0.19828]
[1731506090703,18.701378,213.92,213.76,0.19828]
[1731506090884,47.56146801,213.97,213.76,0.19828]
[1731506091624,0.12549,213.9,213.76,0.19828]
[1731506091902,166.93692963,213.89,213.76,0.19828]
[1731506092092,161.4,213.89,213.76,0.19828]
[1731506092697,166.93692963,213.89,213.76,0.19828]
[1731506093600,5.53692963,213.88,213.76,0.19828]
[1731506094505,0.12549,213.87,213.76,0.19828]
[1731506094706,5.53692963,213.87,213.76,0.19828]
[1731506095092,161.4,213.91,213.76,0.19828]
[1731506095296,5.53692963,213.92,213.76,0.19828]
[1731506095501,0.12549,213.89,213.76,0.19828]
[1731506095712,0.12549,213.86,213.76,0.19828]
[1731506096604,198.75083838,213.87,213.76,0.19828]
[1731506096803,161.4,213.87,213.76,0.19828]
[1731506097314,37.35083838,213.91,213.76,0.19828]
[1731506097509,47.56216801,213.93,213.76,0.19828]
[1731506097813,37.35083838,213.91,213.76,0.19828]
[1731506098017,42.88776801,213.91,213.76,0.19828]
[1731506098310,0.12549,213.9,213.76,0.19828]
[1731506098503,0.12549,213.88,213.76,0.19828]
[1731506098710,11.5803404,213.9,213.76,0.19828]
[1731506098894,5.53692963,213.9,213.76,0.19828]
[1731506099595,0.12549,213.89,213.76,0.19828]
[1731506100310,37.47632838,213.87,213.76,0.19828]
[1731506100615,161.4,213.9,213.76,0.19828]
[1731506100993,37.47632838,213.89,213.76,0.19828]
[1731506101196,43.01325801,213.89,213.76,0.19828]
[1731506101405,37.47632838,213.87,213.76,0.19828]
[1731506101610,0.12549,213.82,213.76,0.19828]
[1731506102094,0.12549,213.84,213.76,0.19828]
[1731506102306,4.80199,213.84,213.76,0.19828]
[1731506102508,37.35083838,213.77,213.76,0.19828]
[1731506102711,198.75083838,213.77,213.76,0.19828]
[1731506102894,61.12772238,213.77,213.76,0.19828]
[1731506103512,63.15468836,213.77,213.76,0.19828]
[1731506103994,67.83258836,213.77,213.76,0.19828]
[1731506104320,0.12549,213.78,213.76,0.19828]
[1731506105124,66.15008472,213.77,213.76,0.19828]
[1731506105291,72.19349549,213.77,213.76,0.19828]
[1731506105496,72.09349549,213.77,213.76,0.19828]
[1731506105706,72.09349549,213.77,213.76,0.07288]
[1731506107507,109.64433387,213.77,213.76,0.07288]
[1731506107718,77.63042512,213.77,213.76,0.07288]
[1731506108012,5.53692963,213.77,213.76,0.07288]
[1731506108317,37.35083838,213.83,213.76,0.07288]
[1731506108520,37.35083838,213.79,213.76,0.07288]
[1731506108819,5.53692963,213.78,213.76,0.07288]
[1731506109798,37.47632838,213.77,213.76,0.07288]
[1731506109999,43.01325801,213.77,213.76,0.07288]
[1731506110412,66.79014201,213.77,213.76,0.07288]
[1731506110920,29.43930363,213.77,213.76,0.07288]
[1731506111423,66.79014201,213.77,213.76,0.07288]
[1731506112022,23.902374,213.75,213.59,12.3908]
[1731506112216,37.47632838,213.73,213.59,12.3908]
[1731506112412,0.12549,213.73,213.59,12.3908]
[1731506113222,5.66241963,213.73,213.59,12.3908]
[1731506113411,43.01325801,213.73,213.59,12.3908]
[1731506113625,204.41325801,213.73,213.59,12.3908]
[1731506114702,167.06241963,213.73,213.59,12.3908]
[1731506114912,204.41325801,213.73,213.59,12.3908]
[1731506115416,161.4,213.73,213.59,12.3908]
[1731506115726,37.35083838,213.84,213.59,12.3908]
[1731506115727,198.75083838,213.85,213.62,20.12549]
[1731506116026,17.14712242,213.94,213.72,20.12549]
[1731506116203,17.14712242,213.94,213.69,43.0497]
[1731506116204,11.10371165,213.94,213.74,20.0]
[1731506116407,37.35083838,213.86,213.69,43.0497]
[1731506116714,37.35083838,213.9,213.7,20.0]
[1731506116914,37.35083838,213.88,213.69,43.0497]
[1731506117210,0.12549,213.83,213.69,43.0497]
[1731506117619,6.04248518,213.84,213.69,43.0497]
[1731506118417,6.04248518,213.84,213.7,0.12549]
[1731506118604,11.10371165,213.94,213.72,0.1]
[1731506118605,6.04248518,213.93,213.72,0.1]
[1731506118805,37.35083838,213.9,213.7,20.0]
[1731506119005,37.35083838,213.88,213.69,43.0497]
[1731506119209,10.96484752,213.89,213.71,0.22549]
[1731506119427,6.04248518,213.91,213.71,0.12549]
[1731506119626,6.04248518,213.89,213.71,0.12549]
[1731506119811,172.50371165,213.94,213.73,0.1]
[1731506120120,6.04248518,213.92,213.72,20.0]
[1731506120510,0.12549,213.91,213.72,20.0]
[1731506120708,43.39332356,213.9,213.69,43.0497]
[1731506120919,23.776884,213.89,213.7,20.0]
[1731506121124,6.04248518,213.89,213.7,20.0]
[1731506121309,6.04248518,213.88,213.7,20.0]
[1731506122035,0.12549,213.87,213.7,20.0]
[1731506122208,6.16797518,213.87,213.69,43.0497]
[1731506122527,0.12549,213.83,213.69,43.0497]
[1731506122826,5.77779493,213.86,213.69,43.0497]
[1731506123009,161.4,213.91,213.71,0.1]
[1731506123211,37.35083838,213.92,213.7,0.12549]
[1731506123414,172.50371165,213.94,213.69,43.0497]
[1731506123415,4.80079,213.89,213.69,43.0497]
[1731506123615,0.12549,213.85,213.69,43.0497]
[1731506123922,37.35083838,213.78,213.69,43.0497]
[1731506124129,37.35083838,213.76,213.69,43.0497]
[1731506124335,23.776884,213.75,213.69,43.0497]
[1731506124631,29.81936918,213.8,213.69,43.0497]
[1731506124811,0.12549,213.79,213.69,43.0497]
[1731506125016,37.35083838,213.79,213.69,43.0497]
[1731506125325,0.12549,213.76,213.69,43.0497]
[1731506125516,29.94485918,213.76,213.69,43.0497]
[1731506125831,23.902374,213.74,213.69,43.0497]
[1731506126132,37.35083838,213.79,213.69,43.0497]
[1731506126433,23.776884,213.8,213.69,43.0497]
[1731506126814,0.12549,213.79,213.69,43.0497]
[1731506127229,37.35083838,213.85,213.69,43.0497]
[1731506127424,42.02703838,213.85,213.69,43.0497]
[1731506127928,161.4,213.87,213.69,43.0497]
[1731506128127,5.63972475,213.88,213.7,23.902374]
[1731506128331,42.02563838,213.91,213.7,20.0]
[1731506128527,37.35083838,213.89,213.7,20.0]
[1731506128713,0.12549,213.88,213.69,43.0497]
[1731506128913,0.12549,213.86,213.69,43.0497]
[1731506129115,161.4,213.88,213.69,43.0497]
[1731506129422,161.4,213.88,213.7,43.776884]
[1731506129621,0.12549,213.84,213.69,43.0497]
[1731506129822,0.12549,213.8,213.69,43.0497]
[1731506130021,37.35083838,213.77,213.69,43.0497]
[1731506130220,0.12549,213.75,213.69,43.0497]
[1731506130619,23.902374,213.75,213.69,43.0497]
[1731506130815,61.25321238,213.75,213.69,43.0497]
[1731506131225,23.902374,213.72,213.69,43.0497]
[1731506131412,42.99056313,213.75,213.69,43.0497]
[1731506131609,37.35083838,213.73,213.69,43.0497]
[1731506132017,161.52549,213.72,213.69,43.0497]
[1731506133935,161.52549,213.72,213.56,13.3247]
[1731506134153,0.12549,213.66,213.56,13.3247]
[1731506134432,23.902374,213.64,213.56,13.3247]
[1731506134932,23.902374,213.62,213.56,13.3247]
[1731506135127,37.35083838,213.61,213.56,13.3247]
[1731506135433,23.902374,213.58,213.55,30.9786]
[1731506135915,185.302374,213.58,213.55,30.9786]
[1731506136122,37.35083838,213.57,213.54,0.4384114]
[1731506136317,161.4,213.56,213.54,0.4384114]
[1731506136513,23.776884,213.57,213.54,0.4384114]
[1731506136718,0.12549,213.56,213.54,0.4384114]
[1731506137237,222.65321238,213.55,213.54,0.4384114]
[1731506137442,66.89293713,213.55,213.54,0.4384114]
[1731506137618,66.89293713,213.55,213.39,13.2965]
[1731506137619,0.1,213.53,213.39,13.2965]
[1731506137824,0.12549,213.42,213.39,13.2965]
[1731506138019,5.63972475,213.43,213.39,13.2965]
[1731506138517,5.77779493,213.42,213.39,13.2965]
[1731506138722,5.63972475,213.41,213.39,13.2965]
[1731506139043,5.77779493,213.4,213.39,13.2965]
[1731506139234,11.41751968,213.4,213.39,13.2965]
[1731506140443,23.902374,213.39,213.37,32.826]
[1731506140641,23.902374,213.39,213.14,2.02920835]
[1731506140642,23.902374,213.37,213.08,43.2124]
[1731506140938,65.81502238,213.34,213.13,2.05596405]
[1731506141139,65.81502238,213.34,213.08,43.2124]
[1731506141140,0.12549,213.23,213.08,43.2124]
[1731506141314,37.35083838,213.15,213.0,5.1]
[1731506141520,174.81400775,213.14,213.0,5.0]
[1731506141722,161.4,213.14,213.09,12.9126]
[1731506142334,6.54497382,213.14,213.01,12.9126]
[1731506142540,17.73241502,213.13,213.01,12.9126]
[1731506142837,61.12772238,213.24,213.01,13.1126]
[1731506143034,37.47632838,213.13,213.0,5.0]
[1731506143235,24.3407854,213.12,213.0,5.0]
[1731506143430,23.902374,213.06,213.0,5.0]
[1731506143642,6.55700522,213.05,213.0,5.0]
[1731506145925,6.18021141,213.08,213.0,5.0]
[1731506146130,6.18021141,213.08,213.01,12.2062]
[1731506147023,23.902374,213.07,213.01,12.2062]
[1731506147229,0.12549,213.05,213.01,12.2062]
[1731506147430,30.08258541,213.05,213.0,5.0]
[1731506147634,48.86228441,213.05,213.0,5.0]
[1731506147938,18.779699,213.05,213.0,5.0]
[1731506148354,6.18021141,213.1,213.0,5.0]
[1731506148656,18.774129,213.08,213.0,5.0]
[1731506148836,5.57030004,213.13,213.01,44.102374]
[1731506149039,18.765675,213.16,213.04,12.1047]
[1731506149234,18.765675,213.16,213.05,24.002374]
[1731506149539,5.26083757,213.23,213.04,12.0047]
[1731506149739,6.30570141,213.22,213.04,12.0047]
[1731506150123,18.764284,213.25,213.05,0.1]
[1731506150124,5.26083757,213.21,213.05,0.1]
[1731506150330,0.12549,213.24,213.05,20.0]
[1731506150529,6.18021141,213.23,213.05,23.902374]
[1731506150738,6.18021141,213.23,213.08,0.1]
[1731506151039,18.764284,213.25,213.11,0.1]
[1731506151246,5.26083757,213.24,213.07,0.1]
[1731506151425,6.18021141,213.24,213.07,0.1]
[1731506151626,18.764284,213.25,213.07,20.32549]
[1731506151946,18.764284,213.25,213.12,0.2]
[1731506152143,6.18021141,213.34,213.12,0.2]
[1731506152346,24.93588341,213.34,213.09,0.1]
[1731506152544,161.4,213.33,213.1,0.1]
[1731506152746,6.18021141,213.32,213.13,0.2]
[1731506153037,6.18021141,213.32,213.15,12.8126]
[1731506153245,0.12549,213.31,213.15,12.8126]
[1731506153439,6.18021141,213.3,213.16,73.852284]
[1731506153742,161.4,213.44,213.2,0.22549]
[1731506153930,161.4,213.44,213.16,73.852284]
[1731506153931,0.1,213.43,213.18,0.1]
[1731506154135,37.45083838,213.43,213.16,50.1754]
[1731506154335,0.1,213.39,213.16,30.0754]
[1731506154539,0.12549,213.37,213.16,30.0754]
[1731506155234,23.902374,213.37,213.16,30.0754]
[1731506155438,28.589174,213.37,213.16,30.0754]
[1731506155632,28.589174,213.37,213.16,29.790423]
[1731506155948,28.689174,213.37,213.16,29.790423]
[1731506156246,0.12549,213.32,213.16,29.790423]
[1731506157153,0.12549,213.3,213.16,29.790423]
[1731506157543,23.776884,213.33,213.16,29.790423]
[1731506157857,0.12549,213.32,213.16,29.790423]
[1731506159346,23.902374,213.3,213.16,29.790423]
[1731506160038,0.12549,213.3,213.16,29.790423]
[1731506160232,161.4,213.31,213.16,29.790423]
[1731506160443,0.12549,213.3,213.16,29.790423]
[1731506161237,4.81389,213.3,213.16,29.790423]
[1731506161431,0.12549,213.28,213.16,29.790423]
[1731506162253,37.35083838,213.36,213.16,29.790423]
[1731506162254,161.4,213.34,213.16,29.790423]
[1731506162457,37.35083838,213.36,213.16,29.790423]
[1731506162663,161.4,213.35,213.16,29.790423]
[1731506162837,0.12549,213.34,213.16,29.790423]
[1731506163157,37.57632838,213.34,213.16,29.790423]
[1731506163363,107.57632838,213.32,213.16,29.790423]
[1731506163551,0.12549,213.26,213.16,29.790423]
[1731506163857,23.902374,213.24,213.16,29.790423]
[1731506164352,23.902374,213.2,213.07,12.5461]
[1731506164553,191.12811409,213.2,213.07,12.5461]
[1731506164756,0.12549,213.18,213.07,12.5461]
[1731506164958,23.902374,213.18,213.07,12.5461]
[1731506165450,23.902374,213.16,213.07,12.5461]
[1731506165654,23.902374,213.16,213.07,12.0461]
[1731506166156,29.72811409,213.16,213.07,12.0461]
[1731506166683,23.902374,213.14,213.07,11.90527303]
[1731506166962,0.12549,213.12,213.07,11.90527303]
[1731506167145,5.95123009,213.12,213.07,11.90527303]
[1731506167349,0.12549,213.1,213.0,5.0]
[1731506167544,0.12549,213.08,213.0,5.0]
[1731506167941,0.12549,213.06,213.0,5.0]
[1731506168269,0.12549,213.04,213.0,5.0]
[1731506168473,23.776884,213.02,213.0,5.0]
[1731506168757,161.4,213.03,213.0,5.0]
[1731506168958,5.82574009,213.05,213.0,5.0]
[1731506169150,23.776884,213.05,213.0,5.0]
[1731506169345,42.17092838,213.01,213.0,5.0]
[1731506169552,10.64583009,213.01,213.0,5.0]
[1731506169759,71.77355247,213.01,213.0,5.0]
[1731506170254,98.04941142,213.01,213.0,5.0]
[1731506170569,102.68654948,213.01,213.0,5.0]
[1731506170860,78.04941142,213.01,213.0,5.0]
[1731506171062,82.78654948,213.01,213.0,5.0]
[1731506171454,10.64583009,213.01,213.0,5.0]
[1731506171756,59.00966548,213.01,213.0,5.0]
[1731506171960,21.4333371,213.01,213.0,5.0]
[1731506172144,16.79619904,213.01,213.0,5.0]
[1731506172346,12.10159904,213.01,213.0,5.0]
[1731506172863,0.12549,212.96,212.91,0.4384114]
[1731506173045,0.12549,212.92,212.91,0.4384114]
[1731506173656,28.598874,212.92,212.91,0.4384114]
[1731506173955,34.42461409,212.92,212.91,0.4384114]
[1731506174954,124.42461409,212.92,212.91,0.4384114]
[1731506175154,34.42461409,212.92,212.91,0.4384114]
[1731506175349,124.42461409,212.92,212.91,0.4384114]
[1731506175565,124.42461409,212.92,212.72,12.3562]
[1731506175566,44.002374,212.86,212.72,12.3562]
[1731506175868,70.0,212.82,212.71,32.9519]
[1731506176046,20.12549,212.77,212.71,32.9519]
[1731506176252,6.3342518,212.76,212.64,12.5945]
[1731506176575,43.68509018,212.76,212.64,12.5945]
[1731506176863,6.3342518,212.76,212.64,12.5945]
[1731506177054,6.3342518,212.76,212.7,0.062566]
[1731506177055,37.35083838,212.76,212.7,0.062566]
[1731506177242,37.35083838,212.75,212.7,0.062566]
[1731506177448,43.68509018,212.75,212.7,0.062566]
[1731506177670,0.12549,212.74,212.7,0.062566]
[1731506177859,167.7342518,212.74,212.7,0.062566]
[1731506178062,6.3342518,212.74,212.7,0.062566]
[1731506178269,107.35083838,212.71,212.7,0.062566]
[1731506178450,133.78509018,212.71,212.7,0.062566]
[1731506178650,113.68509018,212.71,212.7,0.062566]
[1731506178866,4.63713806,212.71,212.7,0.062566]
[1731506179073,0.12549,212.73,212.7,0.062566]
[1731506179261,0.12549,212.71,212.7,0.062566]
[1731506179781,6.4597418,212.71,212.7,0.062566]
[1731506180147,11.0342518,212.77,212.7,0.062566]
[1731506180362,6.3342518,212.76,212.7,0.062566]
[1731506181156,4.82579,212.75,212.7,0.062566]
[1731506181370,6.3342518,212.74,212.7,0.062566]
[1731506181576,37.35083838,212.74,212.7,0.062566]
[1731506181753,37.35083838,212.76,212.7,0.062566]
[1731506181956,43.22761644,212.76,212.7,0.062566]
[1731506182150,37.45083838,212.74,212.7,0.062566]
[1731506182377,37.35083838,212.72,212.7,0.062566]
[1731506182568,113.776884,212.71,212.7,0.062566]
[1731506183067,20.0,212.71,212.7,0.062566]
[1731506183270,118.478084,212.71,212.7,0.062566]
[1731506183462,124.48035206,212.71,212.7,0.062566]
[1731506183656,124.58035206,212.71,212.7,0.062566]
[1731506183861,43.876884,212.64,212.6,0.5032761]
[1731506184063,81.25321238,212.61,212.6,0.5032761]
[1731506184959,81.35321238,212.61,212.6,0.5032761]
[1731506185166,98.9953605,212.61,212.6,7.61e-05]
[1731506185565,98.7953605,212.61,212.6,7.61e-05]
[1731506186284,0.12549,212.54,212.39,12.5007]
[1731506186474,37.35083838,212.5,212.39,12.5007]
[1731506186672,6.56288917,212.5,212.39,12.5007]
[1731506186975,37.35083838,212.54,212.39,12.5007]
[1731506187184,107.35083838,212.5,212.39,12.5007]
[1731506187382,37.35083838,212.48,212.39,12.5007]
[1731506187564,255.176884,212.47,212.39,12.5007]
[1731506187766,23.776884,212.45,212.39,12.5007]
[1731506187960,6.56288917,212.44,212.39,12.5007]
[1731506188160,4.7074,212.43,212.39,12.5007]
[1731506188381,12.83874812,212.42,212.39,12.5007]
[1731506188675,205.176884,212.41,212.36,0.5032761]
[1731506188872,43.91372755,212.4,212.36,0.5032761]
[1731506189069,37.35083838,212.38,212.36,0.5032761]
[1731506189275,198.01563212,212.37,212.3,12.6429]
[1731506189463,37.35083838,212.33,212.3,12.6429]
[1731506189779,5.90904145,212.32,212.27,33.0479]
[1731506190279,5.9269859,212.31,212.27,33.0479]
[1731506190460,5.55825046,212.3,212.27,33.0479]
[1731506190663,5.9269859,212.29,212.27,33.0479]
[1731506190859,70.0,212.42,212.27,33.0479]
[1731506191074,28.485084,212.4,212.28,0.12549]
[1731506191282,5.15682126,212.39,212.27,33.0479]
[1731506191460,37.35083838,212.35,212.27,33.0479]
[1731506191659,5.15682126,212.34,212.27,33.0479]
[1731506191861,37.35083838,212.33,212.27,33.0479]
[1731506192073,11.13306475,212.32,212.27,33.0479]
[1731506192276,6.93464264,212.27,212.13,13.3261]
[1731506192457,37.35083838,212.22,212.13,13.3261]
[1731506192663,37.35083838,212.19,212.13,13.3261]
[1731506192882,37.35083838,212.17,212.13,13.3261]
[1731506193087,161.5,212.24,212.13,13.3261]
[1731506193088,37.35083838,212.19,212.13,13.3261]
[1731506193583,37.35083838,212.21,212.13,13.3261]
[1731506193883,37.35083838,212.17,212.13,13.3261]
[1731506194072,37.35083838,212.15,212.13,13.3261]
[1731506194279,37.35083838,212.15,212.11,0.5032761]
[1731506194468,37.35083838,212.12,212.11,0.5032761]
[1731506195177,39.35180674,212.12,212.11,0.5032761]
[1731506195386,39.35180674,212.12,211.93,0.1]
[1731506195569,37.35083838,212.06,211.93,0.1]
[1731506195881,37.35083838,212.04,211.93,0.1]
[1731506196481,37.35083838,212.08,211.95,0.1]
[1731506196687,37.35083838,212.04,211.93,0.1]
[1731506196863,37.35083838,212.1,211.95,0.1]
[1731506197065,37.35083838,212.12,212.0,0.1]
[1731506197361,4.713,212.18,211.92,12.2396]
[1731506197362,37.35083838,212.14,212.03,0.1]
[1731506197560,44.56953186,212.16,212.04,43.2986]
[1731506197767,37.35083838,212.12,212.04,43.2986]
[1731506197971,37.35083838,212.1,212.05,23.776884]
[1731506198166,37.35083838,212.06,212.04,12.1952]
[1731506198365,7.21869348,212.05,212.02,0.12549]
[1731506198567,37.47632838,212.03,212.02,0.12549]
[1731506198764,181.62549,212.02,211.87,12.1952]
[1731506198975,37.35083838,211.96,211.87,12.1952]
[1731506199203,44.28064297,212.02,211.87,12.2952]
[1731506199365,37.35083838,212.0,211.87,12.2952]
[1731506199683,6.92980459,212.02,211.87,12.2952]
[1731506199684,6.92980459,211.99,211.87,12.2952]
[1731506199868,37.35083838,212.04,211.89,0.3073945]
[1731506200066,6.92980459,212.04,211.94,0.1]
[1731506200289,70.1,212.14,212.0,0.1]
[1731506200290,37.35083838,212.14,212.0,0.1]
[1731506200497,37.35083838,212.12,212.01,43.142]
[1731506200673,6.92980459,212.11,212.01,43.142]
[1731506200869,6.92980459,212.11,212.02,23.876884]
[1731506201093,1.99012073,212.24,212.04,0.1]
[1731506201284,37.35083838,212.2,212.06,0.1]
[1731506201487,6.04654093,212.19,212.02,23.776884]
[1731506201790,43.39737931,212.24,212.07,0.22549]
[1731506202185,43.39737931,212.24,212.07,0.1]
[1731506202383,6.04654093,212.24,212.12,0.1]
[1731506202697,11.19006957,212.28,212.12,0.1]
[1731506202995,11.19006957,212.28,212.15,23.776884]
[1731506203182,17.05648826,212.28,212.15,23.776884]
[1731506203489,24.71795869,212.27,212.15,23.902374]
[1731506203671,5.86641869,212.27,212.15,23.902374]
[1731506203876,5.86641869,212.27,212.15,24.002374]
[1731506204213,11.19006957,212.28,212.2,23.902374]
[1731506204588,11.19006957,212.28,212.2,24.002374]
[1731506204789,11.19006957,212.28,212.2,23.902374]
[1731506204993,37.35083838,212.27,212.19,30.6831]
[1731506205174,37.35083838,212.21,212.09,31.582]
[1731506205381,5.86641869,212.2,212.09,31.582]
[1731506205578,18.854634,212.24,212.1,0.1]
[1731506205778,18.854634,212.24,212.09,31.682]
[1731506205779,37.35083838,212.25,212.09,31.582]
[1731506205976,5.86641869,212.24,212.09,31.582]
[1731506206179,5.86641869,212.24,212.11,0.1]
[1731506206374,48.54090795,212.28,212.11,0.2]